bitfinex/quotes_ETHUSD_20240703
["timestamp","ask_amount","ask_price","bid_price","bid_amount"]
[1720015983089,7.32,3323.2,3322.7,0.94270283]
[1720015983273,22.6,3323.8,3322.8,6.96378724]
[1720015983274,7.32,3323.5,3322.8,6.96378724]
[1720015983442,7.32,3323.5,3323.0,0.94270283]
[1720015983786,10.25461368,3323.9,3323.2,6.9036]
[1720015983787,17.57461368,3323.9,3323.2,6.9036]
[1720015984091,17.57461368,3323.9,3323.3,1.00287455]
[1720015984092,7.32,3323.9,3323.3,1.00287455]
[1720015984595,7.32,3323.9,3323.3,0.06017172]
[1720015986679,3.0,3323.8,3323.3,0.06017172]
[1720015986902,3.0,3323.8,3323.3,0.85654889]
[1720015987058,3.0,3323.8,3323.3,2.79656881]
[1720015987854,3.0,3323.8,3323.5,1.0]
[1720015988053,7.32,3323.9,3323.7,6.7624]
[1720015990067,7.32,3323.9,3323.4,0.93862927]
[1720015990416,7.32,3323.9,3323.5,0.06016815]
[1720015991305,3.0,3324.2,3323.5,1.06016815]
[1720015991605,3.0,3324.2,3323.5,0.06016815]
[1720015992693,3.0,3324.2,3323.3,6.7603]
[1720015994207,3.0,3324.2,3323.4,0.06017206]
[1720015994769,3.0,3324.2,3323.3,7.53633]
[1720015995305,3.0,3324.2,3323.3,6.7603]
[1720015996588,3.218,3324.1,3323.3,6.7603]
[1720015996779,3.0,3324.0,3323.3,6.7603]
[1720015997188,3.0,3324.0,3322.9,6.7966]
[1720015997189,0.55,3323.9,3322.9,6.7966]
[1720015997375,2.668,3323.7,3322.9,6.7966]
[1720015997788,3.0,3323.6,3322.9,6.7966]
[1720015998199,3.0,3323.6,3322.2,6.7966]
[1720015998440,3.0,3323.6,3322.3,0.77327093]
[1720015998441,7.32,3323.5,3322.3,0.77327093]
[1720015998709,3.0,3323.4,3322.3,0.77327093]
[1720015999022,2.668,3323.3,3322.2,6.7966]
[1720015999381,3.0,3323.2,3322.2,6.7966]
[1720016000814,3.0,3323.2,3322.2,7.7966]
[1720016001016,3.0,3323.4,3322.2,7.7966]
[1720016001182,3.0,3323.4,3322.4,1.0]
[1720016002211,3.0,3323.4,3322.5,0.06018675]
[1720016002803,3.0,3323.4,3322.6,7.2634]
[1720016006918,3.0,3323.4,3322.7,0.06018623]
[1720016007153,3.0,3323.4,3322.9,7.0183]
[1720016007308,3.0,3323.4,3323.1,1.0]
[1720016007507,3.0,3323.4,3323.0,0.76802556]
[1720016010215,3.0,3323.4,3323.0,0.70784826]
[1720016010415,3.0,3323.4,3322.9,7.0183]
[1720016013008,3.0,3323.4,3322.6,7.3062]
[1720016015411,3.0,3323.4,3322.7,0.06018353]
[1720016016272,3.0,3323.4,3322.8,0.06017965]
[1720016016569,3.0,3323.4,3322.8,0.79681762]
[1720016017213,3.0,3323.4,3323.0,1.0]
[1720016017412,3.0,3323.4,3323.0,1.06017961]
[1720016017835,3.0,3323.4,3323.1,7.3418]
[1720016018555,3.0,3323.8,3323.2,0.06017732]
[1720016018745,3.0,3323.8,3323.3,1.0]
[1720016018944,3.0,3323.8,3323.4,0.06017161]
[1720016019149,17.57461368,3323.9,3323.4,0.06017161]
[1720016020424,3.0,3323.8,3323.4,0.06017161]
[1720016020678,3.0,3323.8,3323.4,0.25020854]
[1720016020971,3.0,3323.8,3323.6,7.4863]
[1720016021181,10.32,3324.2,3323.7,1.0]
[1720016021380,10.32,3324.2,3323.7,0.06016635]
[1720016021546,10.32,3324.2,3323.7,1.06016635]
[1720016022350,10.32,3324.2,3323.7,0.06016635]
[1720016026200,10.32,3324.2,3323.6,8.42315954]
[1720016026411,10.32,3324.2,3323.6,7.4863]
[1720016026891,10.32,3324.2,3323.7,0.06016639]
[1720016027123,3.0,3324.2,3323.6,7.4863]
[1720016027259,3.0,3324.4,3323.6,7.4863]
[1720016027462,3.0,3324.4,3323.7,0.06016639]
[1720016027663,3.0,3324.4,3323.7,0.93685954]
[1720016027975,3.0,3324.4,3323.7,1.97286145]
[1720016028187,3.0,3324.4,3323.6,8.42315954]
[1720016028705,3.0,3324.4,3323.6,7.4863]
[1720016035852,3.0,3324.4,3323.6,8.42641485]
[1720016036025,3.0,3324.4,3323.6,7.4863]
[1720016038437,2.668,3324.2,3323.5,0.94011485]
[1720016038604,3.55,3324.1,3323.2,7.4673]
[1720016038798,3.55,3324.1,3323.2,8.40741485]
[1720016038999,3.55,3324.1,3323.2,7.4673]
[1720016040418,3.0,3324.1,3323.3,0.06017897]
[1720016040623,3.0,3324.3,3323.3,0.06017897]
[1720016040829,0.55,3324.2,3323.2,8.40741485]
[1720016041239,0.55,3324.2,3323.2,7.4673]
[1720016043159,0.55,3324.2,3323.3,0.06017415]
[1720016043535,0.55,3324.2,3323.3,1.06017415]
[1720016044969,7.32,3324.5,3323.4,7.4886]
[1720016045167,7.32,3324.5,3323.5,8.48887835]
[1720016045337,7.32,3324.5,3323.7,1.0]
[1720016045532,7.32,3324.5,3323.9,1.0]
[1720016045737,7.32,3324.5,3324.1,1.0]
[1720016046044,7.32,3324.9,3324.3,7.3454]
[1720016047270,3.0,3324.8,3324.3,7.3454]
[1720016049250,3.0,3324.8,3324.0,6.8033]
[1720016049684,2.668,3324.4,3323.8,0.93915571]
[1720016049852,2.668,3324.4,3323.7,6.8033]
[1720016050176,3.0,3324.3,3323.8,0.0601698]
[1720016050387,3.0,3324.8,3323.8,0.99932551]
[1720016050529,3.0,3324.8,3323.9,0.93915571]
[1720016050729,3.0,3324.8,3324.0,0.93915571]
[1720016051485,3.0,3324.8,3323.8,1.99850458]
[1720016051635,3.0,3324.8,3324.0,0.93960303]
[1720016053235,5.668,3324.8,3323.9,0.93960303]
[1720016053550,0.55,3324.7,3323.7,7.74290303]
[1720016053962,0.55,3324.7,3323.7,6.8033]
[1720016054348,0.55,3324.7,3323.7,7.74290303]
[1720016054977,0.55,3324.7,3323.7,6.8033]
[1720016055189,0.55,3324.7,3323.7,7.74290303]
[1720016056487,0.55,3324.7,3323.7,6.8033]
[1720016058679,0.55,3324.7,3323.7,7.7435665]
[1720016060163,0.55,3324.7,3323.7,0.9402665]
[1720016060395,5.668,3324.4,3323.4,7.7647665]
[1720016060605,5.668,3324.4,3323.4,6.8245]
[1720016060916,3.55,3324.3,3323.4,7.7647665]
[1720016061468,3.55,3324.3,3323.5,0.9402665]
[1720016061994,3.55,3324.3,3323.4,7.7647665]
[1720016062590,3.55,3324.3,3323.3,0.9402665]
[1720016063004,3.55,3324.3,3323.2,0.9402665]
[1720016063200,3.55,3324.3,3323.3,0.9402665]
[1720016063380,3.55,3324.3,3323.2,0.9402665]
[1720016063578,5.668,3324.0,3323.2,0.9402665]
[1720016063883,3.55,3323.9,3323.1,0.9402665]
[1720016066817,3.55,3323.9,3323.0,8.1460665]
[1720016067123,3.55,3323.9,3322.9,0.9402665]
[1720016067825,3.55,3323.9,3322.8,0.9410457]
[1720016070429,3.55,3323.9,3322.8,1.97679303]
[1720016071295,3.55,3323.9,3322.8,2.97679303]
[1720016075702,3.89687332,3323.9,3322.8,2.97679303]
[1720016076103,3.89687332,3323.9,3322.8,0.9410457]
[1720016076516,3.89687332,3323.9,3322.7,8.1027457]
[1720016076720,3.89687332,3323.9,3322.7,0.9410457]
[1720016077305,3.89687332,3323.9,3322.6,0.9410457]
[1720016077526,3.89687332,3323.9,3322.6,1.00123306]
[1720016077924,1.112,3323.2,3322.6,1.00123306]
[1720016078166,1.112,3323.2,3322.6,2.04575913]
[1720016078702,1.112,3323.2,3322.6,1.98557177]
[1720016078957,1.112,3323.0,3322.5,0.9410457]
[1720016079263,3.0,3323.4,3322.5,0.9410457]
[1720016079459,1.112,3323.0,3322.4,8.1303457]
[1720016080941,1.112,3323.1,3322.4,8.1303457]
[1720016081157,1.112,3323.1,3322.5,0.93850733]
[1720016081354,1.112,3323.1,3322.5,0.9986967]
[1720016081557,3.0,3323.4,3322.6,1.0]
[1720016081870,3.0,3323.4,3322.5,1.9397424]
[1720016081871,1.112,3323.3,3322.5,1.9397424]
[1720016084081,3.0,3323.4,3322.5,1.9397424]
[1720016084233,3.0,3323.4,3322.4,8.1893]
[1720016084434,3.0,3323.4,3322.4,9.12899983]
[1720016085467,3.0,3323.4,3322.5,0.06018938]
[1720016086848,3.0,3323.4,3322.4,9.12899983]
[1720016087163,3.0,3323.4,3322.4,8.1893]
[1720016087688,3.0,3323.4,3322.3,0.93969983]
[1720016087689,5.668,3323.4,3322.3,0.93969983]
[1720016087856,5.668,3323.4,3322.2,0.93969983]
[1720016088057,5.668,3323.4,3322.1,8.24070458]
[1720016088058,5.668,3323.4,3322.1,9.18040441]
[1720016089479,0.55,3323.3,3321.9,0.93969983]
[1720016089867,0.55,3323.3,3322.0,0.06019688]
[1720016091670,0.55,3323.3,3321.9,3.11010234]
[1720016093457,5.668,3323.4,3322.1,7.2743]
[1720016093660,3.0,3323.4,3322.4,0.99850458]
[1720016093864,3.0,3323.4,3322.5,0.19382044]
[1720016095498,3.0,3323.4,3322.5,1.13352027]
[1720016096798,3.0,3323.4,3322.6,1.0]
[1720016096994,3.0,3323.4,3322.6,1.93969983]
[1720016097295,3.0,3323.4,3322.7,0.06018371]
[1720016097474,3.0,3323.4,3322.8,1.26016866]
[1720016097796,3.0,3323.4,3322.8,2.20005216]
[1720016098110,3.0,3323.4,3322.9,0.9398835]
[1720016098307,3.0,3323.4,3323.0,0.06018048]
[1720016098462,3.0,3323.4,3323.0,1.00006398]
[1720016099263,3.0,3323.4,3323.0,1.34538701]
[1720016099600,3.0,3323.4,3323.1,0.9398835]
[1720016099807,17.57461368,3323.9,3323.3,7.4777]
[1720016099963,7.32,3324.2,3323.4,0.06017003]
[1720016100289,7.32,3324.2,3323.4,0.9398835]
[1720016100490,7.32,3324.2,3323.5,0.06016971]
[1720016100810,7.32,3324.2,3323.6,0.9398835]
[1720016101461,7.32,3324.2,3323.7,0.06016558]
[1720016101695,7.32,3324.2,3323.7,1.00004908]
[1720016101862,7.32,3324.2,3323.7,0.38548829]
[1720016102476,3.0,3324.1,3323.7,0.38548829]
[1720016102706,3.0,3324.1,3323.7,0.06016558]
[1720016103079,7.32,3324.2,3323.7,0.06016558]
[1720016103283,7.32,3324.2,3323.9,0.9398835]
[1720016103491,10.25461368,3324.6,3323.9,1.00004689]
[1720016103729,7.32,3324.7,3324.0,1.06015822]
[1720016103911,7.32,3324.7,3324.0,2.00004172]
[1720016104418,3.0,3324.6,3324.0,1.06015822]
[1720016104770,3.0,3324.6,3324.2,1.0]
[1720016105067,7.32,3324.7,3324.6,1.0]
[1720016105293,10.25461368,3325.2,3324.6,1.78781]
[1720016105481,10.25461368,3325.2,3324.7,0.06014884]
[1720016106316,7.32,3325.3,3324.7,0.06014884]
[1720016106465,7.32,3325.3,3324.5,0.99850458]
[1720016106466,3.0,3325.2,3324.5,0.99850458]
[1720016106665,3.0,3325.2,3324.4,6.8781]
[1720016109392,3.0,3325.2,3324.1,0.9398835]
[1720016109613,3.0,3325.2,3324.0,6.8813]
[1720016111817,3.0,3325.2,3323.8,0.99850458]
[1720016112120,3.0,3325.2,3323.6,11.4929]
[1720016112319,0.55,3325.1,3323.6,7.3189]
[1720016112615,0.55,3325.1,3323.7,1.06016311]
[1720016112980,0.55,3325.1,3323.8,0.99850458]
[1720016113190,0.55,3325.1,3323.9,0.06015856]
[1720016114495,3.55,3325.1,3323.6,8.31740458]
[1720016114698,3.55,3325.1,3323.6,7.3189]
[1720016114699,3.0,3325.0,3323.6,7.3189]
[1720016114896,0.55,3324.9,3323.6,7.3189]
[1720016115404,0.55,3324.9,3323.7,0.06016397]
[1720016115598,3.0,3325.0,3323.8,1.99850458]
[1720016115829,3.0,3325.0,3323.8,0.99850458]
[1720016116415,3.0,3325.0,3323.9,0.06015908]
[1720016120245,3.0,3325.0,3323.6,7.3189]
[1720016120559,3.0,3325.0,3323.6,8.3189]
[1720016120767,3.0,3325.0,3323.6,9.13983956]
[1720016121434,3.0,3325.0,3323.6,7.3189]
[1720016121636,3.0,3325.0,3323.3,4.11101654]
[1720016121637,0.55,3324.9,3323.3,5.10952112]
[1720016121834,0.55,3324.9,3323.3,10.99590458]
[1720016122037,2.668,3324.7,3323.3,7.82190458]
[1720016122242,7.32,3324.6,3323.3,7.82190458]
[1720016122575,3.0,3324.5,3323.3,7.82190458]
[1720016123956,3.0,3324.5,3323.4,1.0]
[1720016124169,3.0,3324.5,3323.6,1.0]
[1720016124876,3.0,3324.5,3323.8,1.0]
[1720016125079,3.0,3324.5,3323.9,0.06016366]
[1720016126181,3.0,3324.5,3323.6,1.0]
[1720016126405,3.0,3324.5,3323.3,6.8234]
[1720016126687,0.0103,3324.4,3323.1,0.99850458]
[1720016127462,2.9729,3324.5,3323.1,1.53965526]
[1720016127874,2.668,3324.3,3322.9,7.1947]
[1720016128087,2.668,3324.3,3322.6,9.2505603]
[1720016128385,2.9729,3324.5,3322.6,9.2505603]
[1720016128386,2.668,3323.9,3322.7,0.99850458]
[1720016128590,7.32,3324.1,3322.7,0.99850458]
[1720016128791,0.55,3324.0,3322.8,0.06017915]
[1720016128989,0.55,3324.0,3323.0,1.0]
[1720016129366,7.32,3324.1,3323.1,0.06017914]
[1720016129569,3.0,3324.0,3323.1,0.06017914]
[1720016129769,3.0,3324.0,3323.2,1.20586837]
[1720016130107,3.0,3324.0,3323.3,0.06017355]
[1720016133164,3.0,3324.0,3323.4,1.0]
[1720016135658,3.0,3324.0,3323.3,0.06017355]
[1720016136264,3.0,3324.0,3323.0,1.99850458]
[1720016136489,3.0,3324.0,3322.9,8.2867603]
[1720016136732,2.668,3323.9,3322.7,1.14862046]
[1720016136871,3.0,3323.8,3322.7,1.14862046]
[1720016137413,3.0,3323.8,3322.7,2.08548076]
[1720016138205,3.0,3323.8,3322.8,0.9368603]
[1720016138510,3.0,3323.8,3322.8,3.52963354]
[1720016139013,3.0,3323.8,3322.8,2.52963354]
[1720016139306,3.0,3323.8,3322.8,0.9368603]
[1720016139598,3.0,3323.8,3322.6,9.3574603]
[1720016140193,3.0,3323.8,3322.6,8.3574603]
[1720016140392,3.0,3323.8,3322.7,0.06018196]
[1720016141010,3.0,3323.8,3322.8,1.0]
[1720016141191,3.0,3323.8,3323.0,1.0]
[1720016141504,2.85,3324.0,3323.1,0.06017833]
[1720016144227,7.32,3324.1,3323.1,0.06017833]
[1720016144503,7.32,3324.1,3323.2,8.1157]
[1720016144799,7.32,3324.1,3323.4,1.0]
[1720016144998,7.32,3324.1,3323.5,0.060171]
[1720016146289,2.85,3324.0,3323.5,0.060171]
[1720016148281,7.32,3324.1,3323.8,0.99850458]
[1720016148601,7.32,3324.6,3324.0,7.8883]
[1720016148933,7.32,3324.6,3324.1,0.06015716]
[1720016149095,10.25461368,3324.9,3324.1,0.06015716]
[1720016149874,10.25461368,3324.9,3324.0,6.8883]
[1720016150206,3.0,3324.8,3323.8,0.9368603]
[1720016150370,3.0,3324.8,3323.7,8.2138603]
[1720016151504,0.55,3324.7,3323.7,7.277]
[1720016154500,0.55,3324.7,3323.6,0.9368603]
[1720016154706,0.55,3324.7,3323.5,0.9368603]
[1720016154707,3.0,3324.4,3323.5,0.9368603]
[1720016155029,3.0,3324.4,3323.4,0.9368603]
[1720016155030,2.668,3324.2,3323.4,0.9368603]
[1720016155228,2.668,3324.2,3323.3,0.9368603]
[1720016155399,3.0,3324.1,3323.3,0.9368603]
[1720016156404,3.0,3324.1,3323.3,1.3553115]
[1720016156807,3.0,3324.1,3323.4,0.9368603]
[1720016159142,3.0,3324.3,3323.4,0.9368603]
[1720016160321,3.0,3324.3,3323.3,0.9368603]
[1720016160322,2.668,3324.2,3323.3,0.9368603]
[1720016160516,3.55,3324.1,3323.2,0.9368603]
[1720016160758,3.0,3324.3,3323.4,7.3099]
[1720016160969,3.0,3324.3,3323.4,8.2467603]
[1720016162211,3.0,3324.3,3323.5,0.06017278]
[1720016162411,7.32,3324.4,3323.7,0.9368603]
[1720016162635,7.32,3324.4,3323.8,0.99702518]
[1720016162945,7.32,3324.4,3323.8,2.2216424]
[1720016163156,7.32,3324.4,3323.8,1.99702518]
[1720016163451,7.32,3324.4,3324.0,7.4839]
[1720016163674,7.32,3324.4,3324.1,0.06016002]
[1720016163810,7.32,3324.9,3324.2,0.9368603]
[1720016164020,7.32,3324.9,3324.2,2.00986704]
[1720016164841,3.0,3324.8,3324.2,2.00986704]
[1720016165943,3.0,3324.8,3324.2,3.00986704]
[1720016166853,3.0,3324.8,3324.3,0.9368603]
[1720016167038,3.0,3324.8,3324.3,1.36877758]
[1720016167949,3.0,3324.8,3324.3,1.37282444]
[1720016168280,3.0,3324.8,3324.3,0.43191728]
[1720016169589,3.0,3324.8,3324.3,0.49207498]
[1720016169749,3.0,3324.8,3324.3,1.43298214]
[1720016170072,3.0,3324.8,3324.4,0.35059889]
[1720016172091,3.0,3324.8,3324.5,0.06015464]
[1720016172250,3.0,3324.8,3324.5,7.15365464]
[1720016172872,3.0,3325.1,3324.5,7.15365464]
[1720016173185,3.0,3325.1,3324.6,1.0]
[1720016173369,3.0,3325.2,3324.6,1.0]
[1720016173983,3.0,3325.2,3324.5,8.0812078]
[1720016176744,3.0,3325.2,3324.6,1.0601529]
[1720016176948,3.0,3325.2,3324.7,0.91413607]
[1720016177571,3.0,3325.2,3324.8,0.06014984]
[1720016178753,3.0,3325.2,3324.7,0.91413607]
[1720016178950,3.0,3325.2,3324.5,7.0935]
[1720016181503,3.0,3325.2,3324.6,0.06015184]
[1720016181702,3.0,3325.2,3324.6,1.06015184]
[1720016182382,3.0,3325.2,3324.8,1.0]
[1720016182588,3.0,3325.2,3324.6,1.99850458]
[1720016182781,3.0,3325.2,3324.7,0.90920046]
[1720016183374,3.0,3325.2,3324.5,7.0935]
[1720016186192,3.0,3325.2,3324.6,1.0]
[1720016186764,3.0,3325.2,3324.7,0.06014684]
[1720016186966,3.0,3325.2,3324.8,1.0]
[1720016187263,3.0,3325.2,3324.6,1.0]
[1720016187464,3.0,3325.2,3324.7,0.90920046]
[1720016187675,3.0,3325.2,3324.6,1.0]
[1720016188796,3.0,3325.2,3324.5,7.0935]
[1720016189010,3.0,3325.2,3324.4,0.35059889]
[1720016192501,3.0,3325.2,3324.4,1.29019408]
[1720016192712,3.0,3325.2,3324.5,0.32886987]
[1720016192876,3.0,3325.2,3324.6,7.3827]
[1720016193061,3.0,3325.2,3324.7,0.06014806]
[1720016193267,7.32,3325.3,3324.9,8.0465]
[1720016193496,7.32,3325.3,3325.2,1.0]
[1720016193665,10.25461368,3325.8,3325.2,1.0]
[1720016193872,10.25461368,3325.8,3325.2,0.26011388]
[1720016194079,10.25461368,3325.8,3325.3,0.06014002]
[1720016194396,7.32,3325.9,3325.4,7.0465]
[1720016194596,7.32,3325.9,3325.5,0.06013493]
[1720016195277,7.32,3325.9,3325.5,1.06013493]
[1720016195989,3.0,3325.8,3325.7,1.0]
[1720016196419,3.0,3325.8,3325.7,1.29982347]
[1720016197319,3.0,3325.8,3325.5,1.0]
[1720016197489,3.0,3325.8,3325.4,12.15859977]
[1720016197490,3.0,3325.8,3325.7,1.0]
[1720016197701,3.0,3325.8,3325.5,1.0]
[1720016199118,7.32,3325.9,3325.7,1.0]
[1720016199323,7.32,3327.1,3326.3,0.99850458]
[1720016199525,7.32,3327.1,3326.7,1.0]
[1720016199727,7.32,3327.1,3326.5,7.3435]
[1720016199902,7.32,3327.1,3326.3,0.99850458]
[1720016200795,7.32,3327.1,3325.9,1.99850458]
[1720016200986,7.32,3327.1,3325.9,0.99850458]
[1720016201491,0.55,3327.0,3325.9,0.99850458]
[1720016201823,0.55,3327.0,3325.7,7.1233]
[1720016201824,3.55,3327.0,3325.7,7.1233]
[1720016202132,2.668,3326.9,3325.7,7.1233]
[1720016202336,3.55,3326.8,3325.7,8.34635717]
[1720016202685,3.55,3326.8,3325.6,0.99850458]
[1720016204286,7.0774,3326.7,3325.5,0.93476707]
[1720016204515,3.0,3326.6,3325.3,8.18046707]
[1720016204737,3.0,3326.6,3325.3,7.2457]
[1720016204937,10.32,3326.6,3325.3,7.2457]
[1720016205236,0.55,3326.5,3325.2,2.93327165]
[1720016205884,0.55,3326.5,3325.2,1.99850458]
[1720016206614,0.55,3326.5,3325.4,1.0]
[1720016207213,0.55,3326.5,3325.2,1.99850458]
[1720016207398,0.55,3326.5,3325.4,1.0]
[1720016207603,0.55,3326.5,3325.5,0.06013414]
[1720016208828,3.218,3326.5,3325.5,0.06013414]
[1720016209002,3.0,3326.4,3325.5,0.06013414]
[1720016209472,3.0,3326.4,3325.4,1.0]
[1720016210321,3.0,3326.4,3325.3,0.93494925]
[1720016210973,3.0,3326.4,3325.5,0.99850458]
[1720016211130,3.0,3326.5,3325.5,1.93345383]
[1720016211871,3.0,3326.5,3325.5,0.93494925]
[1720016212160,6.7587,3326.3,3325.4,0.93494925]
[1720016212363,3.0,3326.2,3325.3,0.93494925]
[1720016212964,2.668,3326.0,3325.1,0.93494925]
[1720016213155,2.668,3326.0,3324.5,6.37180027]
[1720016213156,2.668,3326.0,3324.9,0.93494925]
[1720016213359,3.55,3325.9,3324.8,0.93494925]
[1720016214315,3.55,3325.9,3324.7,1.0]
[1720016214475,3.55,3325.9,3324.7,1.93624531]
[1720016215785,3.55,3325.9,3324.7,1.0]
[1720016217694,7.2392,3325.8,3324.7,1.0]
[1720016217888,3.0,3325.7,3324.6,0.93624531]
[1720016218097,3.0,3325.7,3324.6,2.30016301]
[1720016218409,3.0,3325.7,3324.7,1.0]
[1720016218794,3.0,3325.7,3324.6,1.3639177]
[1720016218973,3.0,3325.7,3324.7,1.0]
[1720016220809,3.0,3325.7,3324.6,2.30081299]
[1720016221021,3.0,3325.9,3324.9,0.99850458]
[1720016221228,7.0469,3326.0,3324.8,0.93689529]
[1720016221533,3.0,3325.9,3325.0,1.0]
[1720016221734,3.0,3325.9,3325.0,1.06014273]
[1720016222282,3.0,3325.9,3325.2,1.0]
[1720016222693,3.0,3325.9,3325.0,1.0]
[1720016222884,3.0,3325.9,3324.8,1.60033624]
[1720016223099,3.0,3325.9,3324.8,2.53723153]
[1720016223427,7.1534,3325.8,3324.8,0.93689529]
[1720016223587,6.218,3325.7,3324.6,1.93689529]
[1720016223988,3.0,3325.7,3324.8,1.99850458]
[1720016224291,3.0,3325.7,3325.0,1.0]
[1720016225322,3.0,3325.7,3325.3,1.0]
[1720016225647,7.32,3326.2,3325.8,1.0]
[1720016225786,7.3175,3326.5,3325.8,1.0]
[1720016225989,7.3175,3326.5,3326.0,1.0]
[1720016226301,7.3175,3326.5,3325.8,1.0]
[1720016226684,7.32,3326.6,3326.0,1.0]
[1720016227432,3.0,3326.5,3326.0,1.0]
[1720016228019,7.32,3326.6,3326.0,1.0]
[1720016229033,2.95,3326.7,3326.0,1.0]
[1720016229204,7.32,3326.9,3325.8,1.19820687]
[1720016229205,7.32,3326.9,3326.2,1.0]
[1720016229404,7.32,3326.9,3326.6,1.0]
[1720016229609,7.32,3326.9,3326.8,1.0]
[1720016229917,7.32,3327.5,3326.8,1.0]
[1720016230116,7.32,3327.5,3327.0,1.0]
[1720016230324,0.32462364,3327.7,3327.0,1.0]
[1720016230523,10.25461368,3327.8,3327.0,1.0]
[1720016230715,10.59213605,3327.8,3327.0,1.0]
[1720016231601,10.59213605,3327.8,3327.2,1.0]
[1720016231602,10.25461368,3327.8,3327.2,1.0]
[1720016231843,10.25461368,3327.8,3327.3,0.06010091]
[1720016232209,10.25461368,3327.8,3327.2,1.0]
[1720016232408,10.25461368,3327.8,3327.0,1.0]
[1720016232918,10.25461368,3327.8,3327.2,1.0]
[1720016233336,3.0,3327.7,3327.2,1.0]
[1720016233846,3.0,3327.7,3326.7,0.99850458]
[1720016234047,7.0007,3327.6,3326.6,1.0]
[1720016234246,3.0,3327.5,3326.6,1.0]
[1720016234918,2.668,3327.2,3326.3,0.99850458]
[1720016235113,2.668,3327.2,3326.1,1.0]
[1720016235114,3.0,3327.1,3326.1,2.93404641]
[1720016235426,3.0,3327.1,3326.1,3.11203813]
[1720016235742,3.0,3327.1,3326.3,1.0]
[1720016236553,3.0,3327.1,3326.1,4.04757996]
[1720016236749,3.0,3327.1,3326.3,1.0]
[1720016237350,3.0,3327.1,3326.4,0.06011746]
[1720016237735,3.0,3327.3,3326.4,0.06011746]
[1720016238049,3.0,3327.3,3326.6,1.0]
[1720016238249,3.0,3327.3,3326.4,1.06011746]
[1720016238756,3.0,3327.3,3326.6,1.0]
[1720016238913,3.0,3327.3,3326.4,2.19794387]
[1720016239856,3.0,3327.3,3326.3,0.93427541]
[1720016240070,3.0,3327.3,3326.1,2.35923409]
[1720016240071,2.668,3327.2,3326.2,0.93427541]
[1720016240216,3.55,3327.1,3326.1,0.93427541]
[1720016240544,3.55,3327.1,3326.0,0.93427541]
[1720016240750,3.55,3327.1,3325.9,7.88817541]
[1720016240915,3.55,3327.1,3326.1,1.0]
[1720016241111,3.55,3327.1,3326.2,0.06012056]
[1720016241457,3.0,3327.1,3326.3,0.06011936]
[1720016241947,7.32,3327.4,3326.6,4.174]
[1720016242146,0.47134855,3331.6,3326.8,1.0]
[1720016242147,7.32,3327.7,3326.8,1.0]
[1720016242325,3.0,3327.6,3326.8,1.0]
[1720016243222,3.0,3327.6,3326.8,1.99850458]
[1720016244134,3.0,3327.6,3327.0,1.0]
[1720016244745,3.0,3327.6,3326.8,1.99850458]
[1720016244950,3.0,3327.6,3326.7,0.93427541]
[1720016245161,3.0,3327.6,3326.6,1.0]
[1720016245162,3.0,3327.6,3326.6,1.93427541]
[1720016245318,3.0,3327.6,3326.6,2.13027805]
[1720016246020,3.0,3327.6,3326.6,1.13027805]
[1720016246221,0.55,3327.5,3326.3,0.93427541]
[1720016246422,2.668,3327.3,3326.3,0.93427541]
[1720016246754,3.0,3327.2,3326.2,2.93277999]
[1720016246960,3.0,3327.2,3326.3,0.73524805]
[1720016247837,10.3175,3327.2,3326.3,0.73524805]
[1720016248965,10.3175,3327.2,3326.5,1.0]
[1720016249161,3.0,3327.2,3326.5,1.0]
[1720016249363,3.0,3327.2,3326.8,6.9999]
[1720016249574,3.0,3327.6,3326.9,0.79999]
[1720016249869,3.0,3327.6,3326.9,1.0]
[1720016250429,3.0,3327.6,3326.6,1.0]
[1720016251030,3.0,3327.6,3326.6,1.06011144]
[1720016252351,6.8781,3327.5,3326.6,1.0]
[1720016252666,3.55,3327.4,3326.5,0.06011559]
[1720016253671,3.55,3327.4,3326.2,8.27990458]
[1720016253835,3.55,3327.4,3326.2,0.99850458]
[1720016254173,2.668,3327.2,3326.2,0.99850458]
[1720016254389,3.0,3327.1,3326.2,0.99850458]
[1720016254592,3.0,3327.1,3326.3,0.0601178]
[1720016255085,3.55,3327.4,3326.4,1.0]
[1720016255385,3.0,3327.4,3326.5,2.05862236]
[1720016255586,3.0,3327.4,3326.9,1.0]
[1720016255790,3.0,3327.6,3326.9,1.0]
[1720016256086,3.0,3327.6,3327.0,0.99850458]
[1720016256262,3.0,3327.6,3327.1,1.0]
[1720016261414,3.0,3327.6,3326.7,7.9092]
[1720016261616,3.0,3327.6,3326.8,0.99850458]
[1720016262213,3.0,3327.6,3326.9,1.0]
[1720016262413,3.0,3327.6,3326.9,1.89077046]
[1720016263014,3.0,3327.6,3327.1,1.0]
[1720016264213,0.02823901,3327.5,3327.1,1.0]
[1720016267922,0.02823901,3327.5,3327.3,1.0]
[1720016271852,0.02823901,3327.5,3327.2,0.93427541]